Cogmind - Beta 16 @@@ ROGUE MODE // 2025.11.18 @ 19:31:32 Player: shapeshifter Result: Destroyed by S-43 Plague with Heavy Machine Gun Performance ------------- Evolutions (7) 3500 Regions Visited (28) 5600 Robots Destroyed (246) 1230 Value Destroyed (12345) 12345 Prototype IDs (222) 4440 Alien Tech Used (0) 0 Bonus (10716) 10716 TOTAL SCORE: 37831 Bonus ------- High Alert Combat Kills 955 Follower Combat Kills 1996 Entered Garrisons 200 Met Data Miner 300 Used Data Conduit 3000 Met Imprinter 300 Acquired ECA 300 Met Zhirov 300 Met Warlord at Base 500 MAIN.C Attacked Warlord 500 Warlord Defense Kills 654 Built Enhanced Grunts 300 Met R17 at Cetus 500 Met R17 at Research 2000 Friendly Fire -1089 Cogmind --------- Core Integrity 0/1300 Matter 300/300 Energy 100/100 System Corruption 64% Temperature Cool (0) Movement Core (50) Location -3/Armory Parts ------- > --- POWER (2) -------- (None) > --- PROPULSION (6) --- (None) > --- UTILITY (9) ------ Spectral Analyzer > --- WEAPON (4) ------- (None) > --- INVENTORY (5) ---- Tactical Coordination Suite Mobile Refinery Mk. CCLXVII Vortex Rail (40) Enhanced Nova Cannon Advanced Remote Datajack Peak State ------------ > --- POWER ------------ Quantum Reactor Quantum Reactor > --- PROPULSION ------- Flexi-carbon Leg Flexi-carbon Leg Enhanced Flexi-carbon Leg Myomer Leg Myomer Leg Myomer Leg > --- UTILITY ---------- Experimental Coolant Injector High-capacity Storage Unit Spectral Analyzer Advanced Signal Interpreter Makeshift ECM Suite Advanced Cloaking Device Centrium Medium Armor Plating Centrium Medium Armor Plating Graphene Brace > --- WEAPON ----------- Hypervelocity Railgun Hypervelocity Railgun Hypervelocity Railgun Hypervelocity Railgun > --- INVENTORY -------- Compact Particle Reactor Quantum Reactor Advanced Energy Well Advanced Sensor Array Tactical Coordination Suite Improved Phase Shifter Advanced Cloaking Device Mobile Refinery Mk. CCLXVII Vortex Rail Vortex Rail BFG-9k Vortex Edition Hypervelocity Railgun Hypervelocity Railgun Heavy Proton Missile Launcher Advanced Remote Datajack [Rating: 167] Favorites ----------- Power Micro Nuclear Core Engine Ion Engine Power Core Micro Nuclear Core Reactor Antimatter Reactor Propulsion Enhanced Flexi-carbon Leg Leg Enhanced Flexi-carbon Leg Utility High-capacity Storage Unit Device Advanced Heat Sink Storage High-capacity Storage Unit Processor Spectral Analyzer Hackware System Shield Protection Improved Medium Armor Plating Weapon Neutron Cannon Energy Gun Heavy Wave Gun Energy Cannon Neutron Cannon Ballistic Gun Advanced KE Penetrator Launcher Mini Smartbomb Launcher Special Weapon Improved Remote Datajack Slashing Weapon Falx Special Melee Weapon Improved Datajack Build | -11 -10 -10 -10 -9 -8 -8 -8 -7 -7 -7 -7 -6 -6 -6 -6 -6 -5 -5 -5 -5 -5 -4 -4 -4 -4 -4 -3 -3 ------- Run | Yrd Mat Min Exi Min Mat Gar Mat Fac Low Low Zio Pro Fac Low Low Dat Pro Fac Upp Upp War Pro Fac Ext Cet Arc Res Arm Slots Evolved 14 | . . . . . 4 . . 2 . . . . 2 . . . . 2 . . . . 2 . . . 2 . Power 1 | . . . . . . . . . . . . . . . . . . 1 . . . . . . . . . . Propulsion 4 | . . . . . 2 . . . . . . . 1 . . . . . . . . . 1 . . . . . Utility 7 | . . . . . 2 . . 1 . . . . 1 . . . . 1 . . . . 1 . . . 1 . Weapon 2 | . . . . . . . . 1 . . . . . . . . . . . . . . . . . . 1 . Parts Attached 236 | 7 2 1 . 3 14 18 . 9 5 8 13 2 11 . 1 18 6 6 7 8 15 2 5 18 19 2 12 24 Power 26 | 1 . . . . 2 2 . 1 . 1 . . . . . 2 2 2 1 1 2 1 . 3 4 . . 1 Engine 5 | 1 . . . . 2 . . 1 . . . . . . . . . . . . 1 . . . . . . . Core 8 | . . . . . . 2 . . . 1 . . . . . . . . 1 . 1 . . 3 . . . . Reactor 13 | . . . . . . . . . . . . . . . . 2 2 2 . 1 . 1 . . 4 . . 1 Propulsion 68 | 2 . 1 . . 4 7 . 1 3 . 2 . 4 . 1 4 . 1 2 2 4 1 . 8 2 2 8 9 Treads . | . . . . . . . . . . . . . . . . . . . . . . . . . . . . . Leg 68 | 2 . 1 . . 4 7 . 1 3 . 2 . 4 . 1 4 . 1 2 2 4 1 . 8 2 2 8 9 Wheel . | . . . . . . . . . . . . . . . . . . . . . . . . . . . . . Hover . | . . . . . . . . . . . . . . . . . . . . . . . . . . . . . Flight . | . . . . . . . . . . . . . . . . . . . . . . . . . . . . . Utility 74 | 2 2 . . . 3 3 . 6 1 3 6 2 5 . . 8 2 . 3 2 5 . 1 7 8 . 3 2 Device 42 | 1 1 . . . 1 1 . 1 1 1 5 1 3 . . 4 2 . 2 1 3 . 1 4 5 . 2 2 Storage 7 | 1 1 . . . 1 . . . . 1 . 1 . . . . . . . 1 . . . 1 . . . . Processor 9 | . . . . . . . . 1 . . . . 2 . . 2 . . 1 . 1 . . 1 . . 1 . Hackware 3 | . . . . . 1 . . 2 . . . . . . . . . . . . . . . . . . . . Protection 13 | . . . . . . 2 . 2 . 1 1 . . . . 2 . . . . 1 . . 1 3 . . . Artifact . | . . . . . . . . . . . . . . . . . . . . . . . . . . . . . Weapon 68 | 2 . . . 3 5 6 . 1 1 4 5 . 2 . . 4 2 3 1 3 4 . 4 . 5 . 1 12 Energy Gun 15 | . . . . . 2 . . . . . . . . . . . . 2 . . 3 . 3 . 2 . 1 2 Energy Cannon 15 | . . . . . 1 2 . . . . 2 . 2 . . 3 . . . 2 . . 1 . 1 . . 1 Ballistic Gun 18 | 2 . . . 3 2 2 . . . . . . . . . . . . . . . . . . 2 . . 7 Ballistic Cannon . | . . . . . . . . . . . . . . . . . . . . . . . . . . . . . Launcher 4 | . . . . . . 1 . . 1 . . . . . . . . . . 1 . . . . . . . 1 Special Weapon 6 | . . . . . . . . . . . 2 . . . . . 2 1 . . . . . . . . . 1 Impact Weapon . | . . . . . . . . . . . . . . . . . . . . . . . . . . . . . Slashing Weapon 8 | . . . . . . 1 . . . 3 1 . . . . 1 . . 1 . 1 . . . . . . . Piercing Weapon . | . . . . . . . . . . . . . . . . . . . . . . . . . . . . . Special Melee Weapon 2 | . . . . . . . . 1 . 1 . . . . . . . . . . . . . . . . . . Unidentified Prototypes 9 | . . . . . 2 . . 1 . . 3 1 . . . . . . . . 2 . . . . . . . Corrupted Parts 3 | . . . . . . . . . . . . . . . . . . . . . . . . . . . . 3 System Corruption 26 | . . . . . . . . . . . . . . . . . . . . . . . . . . . . 26 Parts Lost 105 | . 1 1 . . 1 10 . 2 3 8 . . 3 . . 2 2 10 4 7 1 3 3 3 7 6 . 28 Power 14 | . . . . . . 1 . 1 . . . . . . . . 1 2 . 1 1 2 . . 1 . . 4 Propulsion 42 | . . 1 . . 1 4 . 1 2 2 . . 1 . . 1 . 3 2 3 . 1 1 3 5 2 . 9 Utility 27 | . 1 . . . . 2 . . . 4 . . 1 . . 1 . 3 1 2 . . 1 . . 3 . 8 Weapon 22 | . . . . . . 3 . . 1 2 . . 1 . . . 1 2 1 1 . . 1 . 1 1 . 7 Highest Loss Streak 13 | . 1 1 . . 1 4 . 2 2 5 . . 2 . . 2 1 5 1 7 1 2 3 1 6 6 . 13 To Critical Strikes 1 | . . . . . . . . . . 1 . . . . . . . . . . . . . . . . . . Average Backups 15 | 2 5 8 10 10 9 13 13 14 14 14 18 20 19 19 19 18 19 19 19 17 17 13 12 14 14 15 14 13 Power 1 | . 1 1 2 2 1 1 2 1 2 2 2 2 2 2 2 2 2 2 1 2 1 . . . . 2 2 1 Propulsion . | . . . . . . . . . 1 . . . . . . . . . . . . . . . . . . . Utility 8 | . . 2 2 2 3 7 6 8 7 7 8 9 9 10 10 9 10 11 10 9 10 7 8 9 9 8 7 5 Weapon 4 | . 2 5 6 6 4 4 4 3 2 2 6 6 8 7 7 6 4 3 4 4 4 4 4 5 4 5 3 4 Tool/Special . | . . . . . . . . . . . . . . . . . . . . . . . . . . . . . Unused Backups 49 | . . 1 . . 3 1 . 4 1 2 2 2 5 . . 7 . . 1 . 7 . . 3 1 . 2 7 Power 5 | . . . . . . . . . . . 1 . 1 . . 1 . . . . 1 . . . . . 1 . Propulsion 4 | . . . . . . . . . . 2 . . . . . . . . . . . . . . . . 1 1 Utility 26 | . . . . . . 1 . 4 1 . . 2 4 . . 4 . . . . 4 . . 2 1 . . 3 Weapon 13 | . . 1 . . 3 . . . . . 1 . . . . 2 . . 1 . 2 . . 1 . . . 2 Tool/Special 1 | . . . . . . . . . . . . . . . . . . . . . . . . . . . . 1 Average Slot Usage (%) 79 | . 99 99 100 100 83 88 90 91 98 56 48 100 92 100 100 96 99 80 68 36 78 93 74 91 82 79 87 83 Engine 2 | . 14 14 14 14 9 5 . 1 7 1 . . . . . . . . . . . 4 . . . . . . Core 3 | . . . . . . 3 9 5 . 5 6 7 6 6 6 1 . . 1 3 3 3 . 5 1 . . . Reactor 2 | . . . . . . . . . . . . . . . . 4 6 5 4 1 4 . 5 2 8 10 9 7 Leg 22 | . 28 27 28 28 26 29 36 29 29 18 15 30 28 33 33 32 32 25 14 2 22 27 22 26 15 16 23 23 Device 14 | . 13 14 14 14 14 11 9 7 14 7 8 15 12 13 13 16 19 20 22 6 15 23 20 21 21 16 16 18 Storage 7 | . 14 14 14 14 9 9 9 7 7 7 7 7 6 6 6 6 6 5 5 7 11 11 10 6 5 5 4 4 Processor 4 | . . . . . . . . 6 7 1 . . 7 13 13 14 . . 1 . 4 5 5 9 10 10 11 9 Protection 3 | . . . . . . 3 9 7 7 1 . 15 9 6 6 2 13 7 . . . . . 2 4 5 3 1 Energy Gun 2 | . . . . . 3 . . . . . . . . . . . . 6 1 1 . 5 5 14 10 1 7 2 Energy Cannon 5 | . . . . . . . 18 14 15 7 . 23 19 20 20 2 18 5 . 1 4 5 3 . . . . . Ballistic Gun 4 | . 28 28 28 28 13 16 . . . . . . . . . . . . . . . . . . 3 10 9 11 Slashing Weapon 1 | . . . . . . . . . . 1 3 . . . . 15 . . 13 3 . . . . . . . . Peak Build Rating 167 | 7 9 10 10 10 29 38 38 50 50 47 63 67 72 72 73 100 100 100 77 67 131 131 135 146 139 147 166 167 Average Rating 67 | 4 8 9 10 10 21 29 38 45 48 26 27 63 68 72 72 77 97 85 66 40 102 124 123 137 124 126 143 140 On Entrance 65 | . 7 9 10 10 10 29 38 38 50 45 20 63 64 72 72 73 100 89 63 55 67 129 129 132 139 134 104 157 Avg Prop Armor Cover (%) 17 | . . . . . . . . . . . . . . . . . . . . . . . . . . . . 17 Naked Turns . | . . . . . . . . . . . . . . . . . . . . . . . . . . . . . Heaviest Build 127 | 14 19 19 19 19 35 54 53 55 56 62 83 83 83 79 79 101 102 98 82 79 106 107 111 109 111 102 119 127 Greatest Support 170 | 20 20 20 20 20 56 57 56 59 59 52 83 83 110 110 110 140 140 130 76 60 110 110 110 145 145 126 151 170 Greatest Overweight (x) 25 | . . 1 . . 1 1 . 1 1 2 2 . . . . . . 1 3 25 1 . 2 1 2 1 1 2 Average Overweight (x) . | . . . . . . . . . . . . . . . . . . . . 9 . . . . . . . . Largest Inventory Capacity 20 | 8 10 10 10 10 15 15 15 15 15 20 20 20 20 20 20 20 20 20 20 20 20 20 20 20 20 20 20 20 Average Capacity 18 | 6 8 10 10 10 10 15 15 15 15 18 20 20 20 20 20 20 20 20 20 19 20 20 20 20 20 20 20 19 Most Carried 20 | 5 8 10 10 10 13 15 14 15 15 17 20 20 20 19 20 20 20 20 20 20 20 20 20 20 20 20 20 20 Average Carried 17 | 2 5 9 10 10 9 14 13 14 13 14 18 19 19 19 19 18 19 19 19 17 19 19 17 19 19 20 19 18 Final Capacity 20 | 8 10 10 10 10 15 15 15 15 15 20 20 20 20 20 20 20 20 20 20 20 20 20 20 20 20 20 20 20 Final Carried 20 | 2 7 10 10 10 13 13 14 15 13 18 20 20 19 19 20 20 19 20 20 17 20 17 20 20 20 20 20 19 Class Distribution -------------------- 31% | Mutant 25% | Scavenger-Mutant 19% | Scavenger-Tank 11% | Scavenger-Skirmisher 5% | Scavenger-Gladiator Dominant Class ---------------- Mutant | -10/Materials Mutant | -10/Mines Mutant | -10/Exiles Scavenger-Mutant | -9/Mines Scavenger-Mutant | -8/Materials Scavenger-Mutant | -8/Garrison Scavenger-Mutant | -8/Materials Mutant | -7/Factory Mutant | -7/Lower Caves Mutant | -7/Lower Caves Mutant | -7/Zion Scavenger-Tank | -6/Proximity Caves Scavenger-Tank | -6/Factory Scavenger-Skirmisher | -6/Lower Caves Scavenger-Skirmisher | -6/Lower Caves Scavenger-Gladiator | -6/Data Miner Scavenger-Tank | -5/Proximity Caves Scavenger-Mutant | -5/Factory Scavenger-Gladiator | -5/Upper Caves Mutant | -5/Upper Caves Scavenger-Mutant | -5/Warlord Scavenger-Tank | -4/Proximity Caves Mutant | -4/Factory Scavenger-Tank | -4/Extension Scavenger-Tank | -4/Cetus Scavenger-Tank | -4/Archives Scavenger-Skirmisher | -3/Research Scavenger-Skirmisher | -3/Armory Resources | -11 -10 -10 -10 -9 -8 -8 -8 -7 -7 -7 -7 -6 -6 -6 -6 -6 -5 -5 -5 -5 -5 -4 -4 -4 -4 -4 -3 -3 ----------- Run | Yrd Mat Min Exi Min Mat Gar Mat Fac Low Low Zio Pro Fac Low Low Dat Pro Fac Upp Upp War Pro Fac Ext Cet Arc Res Arm Matter Collected 6169 | 256 171 36 . 58 286 820 15 83 248 157 150 100 90 . 84 253 160 40 125 479 179 20 70 410 326 63 324 1166 Remotely . | . . . . . . . . . . . . . . . . . . . . . . . . . . . . . Salvage Created 11203 | 18 230 25 . 48 314 1176 25 108 766 378 105 265 344 . 102 378 840 645 51 567 189 200 45 1488 422 171 602 1701 Parts 512 | 4 18 5 . 7 23 68 3 5 33 11 6 13 15 . 7 18 23 20 1 28 3 6 . 50 16 5 23 101 Haulers Intercepted 1 | . . . . . . . . . . . . . . . . . . . . . . . . . . . 1 . Recyclers Shooed 2 | . . . . . . . . . . . . . . . . . . . . . . . . 2 . . . . Parts Field Recycled . | . . . . . . . . . . . . . . . . . . . . . . . . . . . . . Retrieved Matter . | . . . . . . . . . . . . . . . . . . . . . . . . . . . . . Parts Self-Destructed 109 | . . . . . . . . . 23 1 . 27 . . 7 . 19 . 9 17 . 6 . . . . . . Prevented 16 | . . . . . . . . . 7 . . . . . . . . . 2 7 . . . . . . . . Parts Restored . | . . . . . . . . . . . . . . . . . . . . . . . . . . . . . Kills | -11 -10 -10 -10 -9 -8 -8 -8 -7 -7 -7 -7 -6 -6 -6 -6 -6 -5 -5 -5 -5 -5 -4 -4 -4 -4 -4 -3 -3 ------- Run | Yrd Mat Min Exi Min Mat Gar Mat Fac Low Low Zio Pro Fac Low Low Dat Pro Fac Upp Upp War Pro Fac Ext Cet Arc Res Arm Combat Hostiles Destroyed 221 | . 8 1 . 4 9 32 2 2 13 6 . 5 10 . 4 4 22 10 1 13 5 7 1 23 3 5 6 25 Melee 10 | . . . . . . . . . . 2 . . . . . 4 . 1 1 . . . . . . . . 2 Guns 91 | . 8 1 . 4 9 23 . . . . . . . . . . . 4 . 1 3 6 . 11 3 . 6 12 Cannons 46 | . . . . . . . 2 1 6 4 . 4 6 . 4 . 11 2 . 3 2 . 1 . . . . . AOE 66 | . . . . . . 9 . . 7 . . . 3 . . . 11 . . 9 . 1 . 12 . 5 . 9 Classes Destroyed 19 | 1 4 . . . 2 1 . . 1 2 . 1 1 . . . 1 . . 1 1 1 . 1 . . 1 . Builder 4 | . 1 . . . 1 . . . . . . . . . . . . . . . . . . 1 . . 1 . Tunneler 2 | 1 . 1 . . . . . . . . . . . . . . . . . . . . . . . . . . Hauler 1 | . . . . . . . . . . . . . . . . . . . . . . . . . . . 1 . Recycler 2 | . . . . . . . . . . . . . . . . . . . . . . . . 2 . . . . Operator 1 | . . . . . . . . . . . . . 1 . . . . . . . . . . . . . . . Drone 2 | . . . . . . . . . . . . . . . . . . . . . . 2 . . . . . . Watcher 6 | . 1 . . . . . . . . . . . . . . . . 1 . . . . . 1 1 . 1 1 Swarmer 65 | . 6 1 . 4 5 12 2 2 5 . . 2 3 . 4 . 5 . . 1 2 . . 8 . . . 3 Saboteur 3 | . . . . . . . . . . . . . . . . . . . . 1 . . . . . . . 2 Grunt 70 | . 2 . . . 1 14 . . 7 . . . 5 . . . 8 2 . 3 . 3 . 5 . 5 4 11 Brawler 10 | . . . . . . . . . . . . 1 . . . . 4 . . 3 1 . . . . . 1 . Duelist 6 | . . . . . . . . . 2 . . . 1 . . . 2 . . 1 . . . . . . . . Protector 1 | . . . . . . . . . . . . . . . . . 1 . . . . . . . . . . . Sentry 23 | . . . . . 2 5 . 1 1 1 . . . . . . 2 3 . 2 . 1 . 2 . . . 3 Specialist 3 | . . . . . . 2 . . . . . . . . . . . . . . 1 . . . . . . . Hunter 14 | . . . . . 1 . . . . . . 1 . . . . . 1 1 2 . . . 7 . . . 1 Programmer 12 | . . . . . . . . . . 1 . . . . . . 1 4 . . . . . . . . 1 5 Behemoth 5 | . . . . . . . . . . . . 1 1 . . . . . . . . 1 1 1 . . . . Cetus Guard 3 | . . . . . . . . . . . . . . . . . . . . . . . . . 3 . . . Enhanced Grunt 6 | . . . . . . . . . . . 1 . . . . 4 . . . . . . . . 1 . . . Executioner 1 | . . . . . . . . . . . . . . . . . . . . . 1 . . . . . . . Thug 2 | . . . . . . . . . . 1 . . . . . . . . . . . . . . 1 . . . Savage 3 | . . . . . . . . . . 3 . . . . . . . . . . . . . . . . . . Commander 1 | . . . . . . . . . 1 . . . . . . . . . . . . . . . . . . . Best Kill Streak 10 | 1 4 1 . 2 5 10 2 1 10 2 . 1 5 . 4 2 8 3 1 10 3 4 1 9 2 5 5 6 Combat Bots Only 10 | . 3 1 . 2 5 10 2 1 10 2 . 1 4 . 4 2 8 3 1 10 3 4 1 7 2 5 4 6 Max Kills in Single Turn 5 | 1 2 1 . 1 1 4 1 1 4 1 1 1 3 . 1 1 4 1 1 3 1 1 1 5 1 3 2 4 Gunslinging 1 | . 1 . . . . . . . . . . . . . . . . . . . . . . . . . . . Exploded 5 | . . . . . . 4 . . 4 . . . 2 . . . 3 . . 3 . 1 . 5 . 3 . 4 Melee 1 | . . . . . . . . . . 1 . . . . . 1 . 1 1 . . . . . . . . 1 Uniques/NPCs Destroyed . | . . . . . . . . . . . . . . . . . . . . . . . . . . . . . Combat | -11 -10 -10 -10 -9 -8 -8 -8 -7 -7 -7 -7 -6 -6 -6 -6 -6 -5 -5 -5 -5 -5 -4 -4 -4 -4 -4 -3 -3 -------- Run | Yrd Mat Min Exi Min Mat Gar Mat Fac Low Low Zio Pro Fac Low Low Dat Pro Fac Upp Upp War Pro Fac Ext Cet Arc Res Arm Hostile Shots Fired 1619 | . 37 11 . 13 33 186 47 26 42 52 . 37 54 . 32 15 84 90 39 53 25 22 21 124 75 . 32 469 Missed 534 | . 8 5 . 3 13 51 23 12 12 15 . 13 12 . 9 3 20 32 8 18 7 4 5 57 29 . 13 162 Hits 1085 | . 29 6 . 10 20 135 24 14 30 37 . 24 42 . 23 12 64 58 31 35 18 18 16 67 46 . 19 307 Melee 23 | . . . . . . . . . . 13 . . . . . . . . . . . . . . . . . 10 Projectile 1062 | . 29 6 . 10 20 135 24 14 30 24 . 24 42 . 23 12 64 58 31 35 18 18 16 67 46 . 19 297 AOE 2 | . . . . . . . . . . . . . . . . . . 2 . . . . . . . . . . Critical Strikes 53 | . 1 . . . . 3 . . 1 3 . . . . 1 . . 6 1 4 . 1 1 4 9 . 3 15 Actively Blocked 25 | . . . . . . . . . . . . . . . . . . . . . . . . 4 6 . 3 12 Part Disruptions 6 | . . . . . . . . . . . . . . . . . . . . . . . . . . . . 6 Damage Taken 22516 | . 324 95 . 85 268 1956 264 286 554 841 . 444 715 . 358 567 1119 1264 587 770 434 418 483 1287 1315 690 465 6927 Core 3352 | . 34 . . 18 66 404 45 48 36 79 . 88 78 . 32 96 49 130 204 226 58 51 31 49 225 . 30 1275 Absorbed by Shields 169 | . . . . . . 16 . . . . . . . . . . . . . . . . . 153 . . . . Ignored by Resistances 114 | . . . . . . . . . . . . . . . . . . . . . . 79 35 . . . . . Regen/Repaired (Parts) 596 | . . . . . . . . . . . 563 . . . . . . . . . 33 . . . . . . . Core Remaining (%) 60 | 100 . . . 79 . . 6 . . . . 64 . . . . 70 . . . . 33 . . . 73 . . Volleys Fired 710 | 2 36 4 . 7 22 136 4 20 24 17 . 17 32 . 12 . 34 53 . 25 27 21 15 51 35 4 24 88 Largest 4 | 2 2 2 . 2 2 2 2 2 2 2 . 3 3 . 3 . 3 2 . 2 1 2 2 3 3 1 4 4 Hottest 270 | 40 40 40 . 40 79 145 145 145 145 145 . 205 215 . 215 . 270 180 . 175 90 120 150 264 264 80 240 240 Shots Fired 1381 | 4 72 8 . 14 44 244 8 26 43 33 . 51 74 . 22 . 81 88 . 35 27 23 19 139 77 4 69 176 Gun 921 | 4 72 8 . 14 44 230 . . . . . . . . . . . 53 . 11 12 23 4 133 77 . 69 167 Cannon 408 | . . . . . . 10 8 26 39 33 . 51 72 . 22 . 72 35 . 11 13 . 15 . . . . 1 Launcher 37 | . . . . . . 4 . . 4 . . . . . . . . . . 11 . . . 6 . 4 . 8 Special 15 | . . . . . . . . . . . . . 2 . . . 9 . . 2 2 . . . . . . . Kinetic 547 | 4 72 8 . 14 40 230 . . . . . . . . . . . . . . . . . . 24 . 35 120 Thermal 712 | . . . . . 4 10 8 26 39 33 . 51 72 . 22 . 72 88 . 13 13 . 15 132 53 . 34 27 Explosive 31 | . . . . . . 4 . . . . . . 2 . . . 4 . . 11 . . . 6 . 4 . . Electromagnetic 21 | . . . . . . . . . 4 . . . . . . . . . . 9 . . . . . . . 8 Entropic 61 | . . . . . . . . . . . . . . . . . . . . . 12 23 4 1 . . . 21 Robot Hit Streak 33 | 1 4 3 . 3 4 19 10 3 16 5 . 4 12 . 12 . 10 8 . 21 8 8 9 15 33 . 7 14 Robot Miss Streak 13 | 2 6 2 . 6 3 6 4 5 2 3 . 9 6 . 4 . 5 2 . 3 6 13 5 3 1 . 4 8 Penetration Max 1 | . . . . . 1 1 . . . . . . . . . . . . . . . . . . . . 1 1 Secondary Targets 12 | . 1 . . . 1 1 . . . . . . . . . . . . . . . . . 3 1 . 3 2 Max Gunslinging Chain 1 | . 1 . . . 1 1 . . . . . . . . . . . . . . . . . 1 1 . 1 1 Shots Hit Robots 821 | 1 33 4 . 4 25 133 3 7 29 22 3 20 39 . 7 29 48 49 4 27 17 19 12 91 61 . 35 99 Core Hits 490 | 1 15 2 . 4 15 57 2 3 28 11 2 7 17 . 4 13 40 22 1 35 9 19 4 58 22 22 19 58 Critical Kills 13 | . . . . . . . . 1 . . . 1 . . . . . . . . . . . . . . 4 7 Critical Parts Destroyed 21 | . . . . 1 . 2 . . . . . . . . . . . . . . . 2 . . 5 . 1 10 Critical Strikes 68 | . . . . 1 . 2 . 1 . 2 . 1 . . . 7 1 12 1 1 . 2 . 5 5 . 5 22 Burn 17 | . . . . . . . . . . . . . . . . . . 12 . . . . . 5 . . . . Meltdown 2 | . . . . . . . . 1 . . . 1 . . . . . . . . . . . . . . . . Destroy 33 | . . . . 1 . 2 . . . . . . . . . . . . . . . . . . 5 . 5 20 Corrupt 1 | . . . . . . . . . . . . . . . . . . . . 1 . . . . . . . . Sever 11 | . . . . . . . . . . 2 . . . . . 7 1 . 1 . . . . . . . . . Detonate 4 | . . . . . . . . . . . . . . . . . . . . . . 2 . . . . . 2 Melee Attacks 96 | . . . . . . 3 . . 2 7 5 . . . . 65 . 5 9 . . . . . . . . . Impact . | . . . . . . . . . . . . . . . . . . . . . . . . . . . . . Slashing 93 | . . . . . . 3 . . . 7 4 . . . . 65 . 5 9 . . . . . . . . . Piercing . | . . . . . . . . . . . . . . . . . . . . . . . . . . . . . Sneak Attacks 7 | . . . . . . . . . 2 . 3 . . . . 2 . . . . . . . . . . . . Combat Hostiles . | . . . . . . . . . . . . . . . . . . . . . . . . . . . . . Follow-up Attacks 16 | . . . . . . . . . . 1 . . . . . 15 . . . . . . . . . . . . Damage Inflicted 32437 | 11 322 44 . 54 464 2683 123 211 1369 675 152 524 1937 . 215 1258 3680 1381 188 1452 915 1629 690 4464 1853 1231 1375 3537 Guns 14237 | 11 322 44 . 54 464 2206 . . . . . . . . . . . 875 . 114 559 1261 239 3050 1853 . 1375 1810 Cannons 6576 | . . . . . . . 85 211 841 528 . 524 1095 . 215 . 1614 407 . 191 356 . 451 . . . . 58 Explosions 9459 | . . . . . . 477 . . 528 . . . 782 . . . 1898 . . 1147 . 368 . 1414 . 1231 . 1614 Melee 1844 | . . . . . . . . . . 147 152 . . . . 1258 . 99 188 . . . . . . . . . Ramming 93 | . . . . . . . 38 . . . . . . . . . . . . . . . . . . . . 55 Kinetic 4986 | 11 322 44 . 54 420 2206 . . . . . . . . . . . . . . . . . . 539 . 773 617 Thermal 14085 | . . . . . 44 . 85 211 1016 528 . 524 1095 . 215 . 1614 1282 . 199 356 368 451 3012 1314 . 602 1169 Explosive 6949 | . . . . . . 477 . . . . . . 782 . . . 1898 . . 1147 . . . 1414 . 1231 . . Electromagnetic 1520 | . . . . . . . . . 353 . . . . . . . . . . 106 . . . . . . . 1061 Impact . | . . . . . . . . . . . . . . . . . . . . . . . . . . . . . Slashing 2072 | . . . . . . . . . . 147 152 . 60 . . 1258 168 99 188 . . . . . . . . . Piercing . | . . . . . . . . . . . . . . . . . . . . . . . . . . . . . Entropic 2732 | . . . . . . . . . . . . . . . . . . . . . 559 1261 239 38 . . . 635 Highest Corruption 64 | . . . . . . . . . . 25 25 . 1 1 1 1 1 6 6 6 6 . . . . . 1 64 Average Corruption 5 | . . . . . . . . . . 23 25 . 1 1 1 1 1 4 6 6 6 . . . . . 1 8 Corruption Purged . | . . . . . . . . . . . . . . . . . . . . . . . . . . . . . Corruption Blocked . | . . . . . . . . . . . . . . . . . . . . . . . . . . . . . Effects 164 | . . . . . . . . . . 30 5 . 4 5 3 6 6 7 15 43 1 . . . . . 5 34 Message Errors 32 | . . . . . . . . . . 4 1 . . 2 1 . . 4 2 8 1 . . . . . 3 6 Matter Fused 34 | . . . . . . . . . . 10 . . . 1 1 3 2 . 2 10 . . . . . . 1 4 Heat Flow Errors 21 | . . . . . . . . . . 2 . . 1 . 1 . . 1 4 8 . . . . . . 1 3 Energy Discharges 25 | . . . . . . . . . . 5 2 . 1 1 . 2 2 . 1 7 . . . . . . . 4 Parts Rejected 3 | . . . . . . . . . . . . . . . . . 1 . . . . . . . . . . 2 Parts Fused 2 | . . . . . . . . . . 1 . . . . . . . . . . . . . . . . . 1 Data Loss (minor) 18 | . . . . . . . . . . 3 1 . 1 . . 1 . 1 4 5 . . . . . . . 2 Data Loss (major) 9 | . . . . . . . . . . 3 . . . . . . . . 1 3 . . . . . . . 2 Misfires 4 | . . . . . . . . . . 1 . . . . . . . 1 . 1 . . . . . . . 1 Alerts 5 | . . . . . . . . . . 1 1 . . 1 . . 1 . 1 . . . . . . . . . Misdirections 3 | . . . . . . . . . . . . . . . . . . . . . . . . . . . . 3 Weapon Failures 8 | . . . . . . . . . . . . . 1 . . . . . . 1 . . . . . . . 6 Overload Shots 6 | . . . . . . . . . . . . . . . . . . . . . . . . . . . 5 1 Overflow Damage 378 | . . . . . . 23 . 8 14 . . 24 101 . 7 . 70 12 13 . . 31 16 5 . 27 . 27 Projectiles 131 | . . . . . . . . 8 14 . . 24 45 . 7 . 17 . . . . . 16 . . . . . Explosions 222 | . . . . . . 23 . . . . . . 56 . . . 53 . . . . 31 . 5 . 27 . 27 Melee 25 | . . . . . . . . . . . . . . . . . . 12 13 . . . . . . . . . Knockbacks 1 | . . . . . . . . . . . . . . . . . . . . . . . . . . . . 1 Impact 1 | . . . . . . . . . . . . . . . . . . . . . . . . . . . . 1 Kinetic . | . . . . . . . . . . . . . . . . . . . . . . . . . . . . . Secondary . | . . . . . . . . . . . . . . . . . . . . . . . . . . . . . Self-Inflicted Damage 287 | . . . . . . 104 . . . . . . . . . . . . . . . . . . . . . 183 Shots 11 | . . . . . . 3 . . . . . . . . . . . . . . . . . . . . . 8 Rammed . | . . . . . . . . . . . . . . . . . . . . . . . . . . . . . Targets Rammed 10 | . . . . . . . 3 . . . . . . . . . . . . . . . . . . . . 7 Kicked 10 | . . . . . . . 3 . . . . . . . . . . . . . . . . . . . . 7 Crushed . | . . . . . . . . . . . . . . . . . . . . . . . . . . . . . Highest Temperature 588 | . 25 . . . 385 82 201 14 6 588 . 63 188 . 241 . 215 206 209 360 199 159 198 424 27 . 207 273 Average Temperature 88 | . 9 . . . 207 29 104 8 3 191 . 23 34 . 120 . 75 26 88 136 81 68 87 118 15 . 100 90 Received Heat Transfer 2814 | . 150 27 . . 63 765 81 30 108 66 . 21 108 . . . 111 189 48 126 . 96 27 51 54 . 135 558 Effects 11 | . . . . . . . . . . 9 . . . . . . . . . 1 . . . . . . . 1 Shutdowns 1 | . . . . . . . . . . 1 . . . . . . . . . . . . . . . . . . Energy Bleed 2 | . . . . . . . . . . 2 . . . . . . . . . . . . . . . . . . Interference 2 | . . . . . . . . . . 1 . . . . . . . . . . . . . . . . . 1 Short Circuit 1 | . . . . . . . . . . . . . . . . . . . . 1 . . . . . . . . Damage (minor) 1 | . . . . . . . . . . 1 . . . . . . . . . . . . . . . . . . Damage (major) 4 | . . . . . . . . . . 4 . . . . . . . . . . . . . . . . . . Siege Activations . | . . . . . . . . . . . . . . . . . . . . . . . . . . . . . Martial Activations . | . . . . . . . . . . . . . . . . . . . . . . . . . . . . . Shielding Activations . | . . . . . . . . . . . . . . . . . . . . . . . . . . . . . Robots Disrupted 2 | . . . . . . . . . . . . . . . . . . . . 1 . . . . . . . 1 Combat Hostiles 2 | . . . . . . . . . . . . . . . . . . . . 1 . . . . . . . 1 Robots Corrupted 2 | . . . . . . . . . . . . . . . . . . . . . . . . . . . . 2 Combat Hostiles 2 | . . . . . . . . . . . . . . . . . . . . . . . . . . . . 2 Parts Fried 8 | . . . . . . . . . . . . . . . . . . . . 2 . . . 3 . . . 3 Impact Corruptions . | . . . . . . . . . . . . . . . . . . . . . . . . . . . . . Robots Melted 6 | . . . . . . . . 1 . . . 1 1 . . . . 3 . . . . . . . . . . Combat Hostiles 6 | . . . . . . . . 1 . . . 1 1 . . . . 3 . . . . . . . . . . Parts Melted 30 | . . . . 1 . . . 3 . 1 . 2 2 . 1 . . 13 . . 1 . . 2 2 . 1 1 Heat Transferred 16178 | . . . . . 111 . 111 296 1247 740 . 842 1649 . 324 . . 3250 . 300 . 200 . 3959 1591 . 629 929 Parts Sabotaged 7 | . . . . . . . . . . . . . . . . . . . . . . . . . . . . 7 Parts Stolen . | . . . . . . . . . . . . . . . . . . . . . . . . . . . . . Parts Stripped . | . . . . . . . . . . . . . . . . . . . . . . . . . . . . . Power Chain Reactions 3 | . . . . . . . . . 2 . . . . . . . . . . . . . . . . . . 1 Alert | -11 -10 -10 -10 -9 -8 -8 -8 -7 -7 -7 -7 -6 -6 -6 -6 -6 -5 -5 -5 -5 -5 -4 -4 -4 -4 -4 -3 -3 ------- Run | Yrd Mat Min Exi Min Mat Gar Mat Fac Low Low Zio Pro Fac Low Low Dat Pro Fac Upp Upp War Pro Fac Ext Cet Arc Res Arm Maximum Alert Level 4 | . . . . . 1 4 2 . . . . . 3 . . . . . . . . . 1 3 2 2 . 1 Low Security (%) 59 | 100 100 100 . 100 71 1 . 100 . . . . . . . . . 100 . . . . . 39 . 35 100 99 Level 1 12 | . . . . . 28 21 94 . . . . . . . . . . . . . . . 99 22 11 37 . . Level 2 10 | . . . . . . 7 5 . . . . . 8 . . . . . . . . . . 18 88 27 . . Level 3 15 | . . . . . . 57 . . . . . . 91 . . . . . . . . . . 19 . . . . Level 4 1 | . . . . . . 12 . . . . . . . . . . . . . . . . . . . . . . Level 5 . | . . . . . . . . . . . . . . . . . . . . . . . . . . . . . High Security . | . . . . . . . . . . . . . . . . . . . . . . . . . . . . . Max Security . | . . . . . . . . . . . . . . . . . . . . . . . . . . . . . Peak Influence 1253 | 5 91 63 . 181 316 1253 610 179 . . . . 934 . . . . 94 . . . . 300 1024 564 524 140 202 Initial 700 | . . 15 . . . 176 610 179 . . . . 700 . . . . 88 . . . . 300 50 564 162 140 . Average 289 | . 43 24 . 88 111 753 341 140 . . . . 796 . . . . 47 . . . . 249 364 456 324 73 77 Influence Increases 9476 | 5 225 137 . 201 455 1217 116 214 308 50 . 471 1246 . 90 . 482 357 30 280 100 130 354 1334 310 432 205 727 Destroy 0b10 Robot/C 5040 | . 160 100 . 140 260 680 40 100 280 40 . 240 340 . 80 . 440 200 20 260 100 100 20 620 160 200 120 340 Destroy 0b10 Robot/NC 145 | 5 10 5 . . 20 . . 5 . . . 10 10 . . . 5 5 . . . 10 . 25 10 5 15 5 Destroy Leader 666 | . 32 10 . 20 72 20 10 20 10 10 . 40 70 . 10 . 30 62 10 20 . 20 10 84 . . 24 82 Allied During Kill 1124 | . . 22 . 41 84 8 . 27 3 . . 166 56 . . . 7 . . . . . . 424 116 170 . . Successful Hack 132 | . 7 . . . 4 30 5 26 . . . . . . . . . 29 . . . . 12 14 . . . 5 Disable Machine 375 | . 15 . . . 15 15 15 30 . . . . 75 . . . . . . . . . . 15 . 15 30 150 Anti-Garrison Action 300 | . . . . . . 300 . . . . . . . . . . . . . . . . . . . . . . Destroy Structure 554 | . 1 . . . . 89 1 6 . . . . 65 . . . . 46 . . . . 12 152 24 42 16 100 Advance Influence 900 | . . . . . . . . . . . . . 600 . . . . . . . . . 300 . . . . . Lose Combat Pursuer 240 | . . . . . . 75 45 . 15 . . 15 30 . . . . 15 . . . . . . . . . 45 Influence Decreases 9439 | 5 186 176 . 201 183 236 973 491 233 244 . 310 489 587 350 71 342 443 84 280 44 186 250 430 912 464 579 690 Entered New Map 2705 | . . 24 . . . 96 643 217 45 38 . . 61 341 64 71 . 52 21 . . 56 . 54 444 244 234 . Time Decay 4916 | 5 176 152 . 201 153 . 30 254 158 126 . 270 238 246 286 . 302 307 63 220 34 130 120 312 318 60 345 410 Search Patrol Dispatched 200 | . . . . . . . . . . . . . 100 . . . . . . . . . 100 . . . . . Lost Part 918 | . 10 . . . 10 100 . 20 30 80 . . 30 . . . 20 84 . 60 10 . 30 24 70 60 . 280 Lost Ally 400 | . . . . . 20 40 . . . . . 40 60 . . . 20 . . . . . . 40 80 100 . . Purge Threat 300 | . . . . . . . 300 . . . . . . . . . . . . . . . . . . . . . Squads Dispatched 22 | . 1 1 . . 1 . 3 . . . . . 3 . . . 1 1 . 1 . . . 3 . . 2 5 Investigation 2 | . 1 . . . . . . . . . . . . . . . . . . . . . . 1 . . . . Extermination 5 | . . . . . . . . . . . . . 1 . . . . 1 . . . . . . . . . 3 Reinforcement 12 | . . . . . 1 . 3 . . . . . 2 . . . . . . . . . . 2 . . 2 2 Assault 3 | . . 1 . . . . . . . . . . . . . . 1 . . 1 . . . . . . . . Garrison . | . . . . . . . . . . . . . . . . . . . . . . . . . . . . . Intercept . | . . . . . . . . . . . . . . . . . . . . . . . . . . . . . Searches Triggered 2 | . . . . . . . . . . . . . 1 . . . . . . . . . 1 . . . . . Construction Impeded 2 | . . . . . . . . . . . . . 1 . . . . . . . . . . 1 . . . . Haulers Reinforced 1 | . . . . . . . . . . . . . . . . . . . . . . . . . . . 1 . Active Scanning Responses . | . . . . . . . . . . . . . . . . . . . . . . . . . . . . . Cargo Convoy Interrupts . | . . . . . . . . . . . . . . . . . . . . . . . . . . . . . Stealth | -11 -10 -10 -10 -9 -8 -8 -8 -7 -7 -7 -7 -6 -6 -6 -6 -6 -5 -5 -5 -5 -5 -4 -4 -4 -4 -4 -3 -3 --------- Run | Yrd Mat Min Exi Min Mat Gar Mat Fac Low Low Zio Pro Fac Low Low Dat Pro Fac Upp Upp War Pro Fac Ext Cet Arc Res Arm Distress Signals 21 | . 3 . . . 1 . 1 . . . . 1 . . . . . 3 . . 2 . . 5 . . 3 2 Communications Jammed . | . . . . . . . . . . . . . . . . . . . . . . . . . . . . . Distress Signals . | . . . . . . . . . . . . . . . . . . . . . . . . . . . . . Times Spotted 420 | . 13 7 . 7 15 37 20 6 14 6 . 13 26 . 4 4 24 15 2 13 32 8 1 41 10 25 22 55 Peak Tracking Total 16 | . 5 3 . 4 6 10 12 4 9 4 . 4 5 . 4 3 9 5 1 6 11 3 1 8 5 16 5 11 Tactical Retreats 16 | . . . . . . 4 1 . 1 . . 1 1 . . . . 1 . . 1 . . 1 . . 1 4 ECM-based Alert Blocks 15 | . . . . . . . . . . . . . . . . . . . . . 1 . . 3 . . 5 6 Traps | -11 -10 -10 -10 -9 -8 -8 -8 -7 -7 -7 -7 -6 -6 -6 -6 -6 -5 -5 -5 -5 -5 -4 -4 -4 -4 -4 -3 -3 ------- Run | Yrd Mat Min Exi Min Mat Gar Mat Fac Low Low Zio Pro Fac Low Low Dat Pro Fac Upp Upp War Pro Fac Ext Cet Arc Res Arm Traps Triggered 8 | . 1 . . . . 5 . . . . . . . . . . . . . . . . 1 . . . . 1 Indirectly . | . . . . . . . . . . . . . . . . . . . . . . . . . . . . . Trap Hack Attempts . | . . . . . . . . . . . . . . . . . . . . . . . . . . . . . Triggered . | . . . . . . . . . . . . . . . . . . . . . . . . . . . . . Disarmed . | . . . . . . . . . . . . . . . . . . . . . . . . . . . . . Reprogrammed . | . . . . . . . . . . . . . . . . . . . . . . . . . . . . . Reused . | . . . . . . . . . . . . . . . . . . . . . . . . . . . . . Traps Extracted . | . . . . . . . . . . . . . . . . . . . . . . . . . . . . . Installed . | . . . . . . . . . . . . . . . . . . . . . . . . . . . . . Triggered . | . . . . . . . . . . . . . . . . . . . . . . . . . . . . . Machines | -11 -10 -10 -10 -9 -8 -8 -8 -7 -7 -7 -7 -6 -6 -6 -6 -6 -5 -5 -5 -5 -5 -4 -4 -4 -4 -4 -3 -3 ---------- Run | Yrd Mat Min Exi Min Mat Gar Mat Fac Low Low Zio Pro Fac Low Low Dat Pro Fac Upp Upp War Pro Fac Ext Cet Arc Res Arm Machines Disabled 35 | . 1 1 . . 1 6 1 2 1 . . . 5 . . . . . . 1 . . . 3 . 1 2 10 Max in Single Turn 2 | . 1 1 . . 1 1 1 1 1 . . . 2 . . . . . . 1 . . . 1 . 1 1 1 Garrison Access 1 | . . . . . . . . 1 . . . . . . . . . . . . . . . . . . . . Garrison Relay 4 | . . . . . . 4 . . . . . . . . . . . . . . . . . . . . . . Energy Cycler 2 | . . . . . . . . . . . . . . . . . . . . . . . . 2 . . . . Machines Repaired . | . . . . . . . . . . . . . . . . . . . . . . . . . . . . . Machines Dismantled . | . . . . . . . . . . . . . . . . . . . . . . . . . . . . . Machines Sabotaged . | . . . . . . . . . . . . . . . . . . . . . . . . . . . . . Overloaded Fab Kills . | . . . . . . . . . . . . . . . . . . . . . . . . . . . . . Hacking | -11 -10 -10 -10 -9 -8 -8 -8 -7 -7 -7 -7 -6 -6 -6 -6 -6 -5 -5 -5 -5 -5 -4 -4 -4 -4 -4 -3 -3 --------- Run | Yrd Mat Min Exi Min Mat Gar Mat Fac Low Low Zio Pro Fac Low Low Dat Pro Fac Upp Upp War Pro Fac Ext Cet Arc Res Arm Machines Accessed 58 | . 3 . 1 1 3 3 1 6 2 . . . 4 . . 3 . 6 . . 2 1 4 4 . . 5 9 Terminals 30 | . 2 . . 1 2 3 1 1 . . . . 2 . . . . 3 . . . 1 2 4 . . 5 3 Fabricators 8 | . . . . . . . . 2 . . . . 1 . . . . . . . . . . . . . . 5 Repair Stations . | . . . . . . . . . . . . . . . . . . . . . . . . . . . . . Recycling Units 6 | . 1 . . . . . . 1 . . . . 1 . . . . 2 . . . . . . . . . 1 Scanalyzers 3 | . . . . . . . . 1 . . . . . . . . . 1 . . . . 1 . . . . . Garrison Access 3 | . . . . . 1 . . 1 . . . . . . . . . . . . . . 1 . . . . . Total Hacks 126 | . 7 . 1 2 6 3 3 18 4 . . . 5 . . 22 . 14 . . 2 2 8 11 . . 6 12 Successful 59 | . 1 . 1 . 1 2 3 6 4 . . . . . . 22 . 5 . . 2 2 5 3 . . 1 1 Failed 66 | . 6 . . 2 5 1 . 11 . . . . 5 . . . . 9 . . . . 3 8 . . 5 11 Catastrophic 21 | . 1 . . 2 2 1 . 1 . . . . 3 . . . . 3 . . . . . 1 . . 3 4 Database Lockouts 1 | . . . . . . . . 1 . . . . . . . . . . . . . . . . . . . . Manual 29 | . 2 . . . 2 . . 6 . . 1 . . . . . . 11 . . 1 . . 3 1 . 2 . Terminals 67 | . 5 . . 2 5 3 3 7 . . . . 2 . . . . 11 . . . 2 5 11 . . 6 5 Fabricators 12 | . . . . . . . . 5 . . . . 1 . . . . . . . . . . . . . . 6 Repair Stations . | . . . . . . . . . . . . . . . . . . . . . . . . . . . . . Recycling Units 9 | . 2 . . . . . . 2 . . . . 2 . . . . 2 . . . . . . . . . 1 Scanalyzers 4 | . . . . . . . . 2 . . . . . . . . . 1 . . . . 1 . . . . . Garrison Access 5 | . . . . . 1 . . 2 . . . . . . . . . . . . . . 2 . . . . . Terminal Hacks 51 | . 1 . 1 . . 2 3 3 4 . . . . . . 22 . 2 . . 2 2 4 3 . . 1 1 Record 12 | . . . 1 . . . . . 3 . . . . . . 6 . . . . . 2 . . . . . . Part Schematic 9 | . . . . . . . . . . . . . . . . 9 . . . . . . . . . . . . Robot Schematic 4 | . . . . . . . . . . . . . . . . 4 . . . . . . . . . . . . Prototype ID Bank 3 | . . . . . . . . . . . . . . . . 3 . . . . . . . . . . . . Open Door 5 | . . . . . . . . . 1 . . . . . . . . . . . 2 . 1 1 . . . . Branch Access Points 3 | . . . . . . . . 1 . . . . . . . . . 1 . . . . . . . . 1 . Emergency Access Points 1 | . . . . . . 1 . . . . . . . . . . . . . . . . . . . . . . Alert Level 1 | . . . . . . . . . . . . . . . . . . . . . . . . 1 . . . . Unreport Threat 2 | . . . . . . . 2 . . . . . . . . . . . . . . . . . . . . . Dispatch Records 1 | . . . . . . . . . . . . . . . . . . . . . . . 1 . . . . . Surveillance Status 1 | . . . . . . . . . . . . . . . . . . . . . . . 1 . . . . . Registered Components 2 | . 1 . . . . . . . . . . . . . . . . . . . . . . 1 . . . . Zone Layout 6 | . . . . . . . 1 2 . . . . . . . . . 1 . . . . 1 . . . . 1 Security Stations 1 | . . . . . . 1 . . . . . . . . . . . . . . . . . . . . . . Fabricator Hacks 1 | . . . . . . . . 1 . . . . . . . . . . . . . . . . . . . . Build 1 | . . . . . . . . 1 . . . . . . . . . . . . . . . . . . . . Repair Station Hacks . | . . . . . . . . . . . . . . . . . . . . . . . . . . . . . Recycling Unit Hacks 1 | . . . . . . . . . . . . . . . . . . 1 . . . . . . . . . . Retrieve Components 1 | . . . . . . . . . . . . . . . . . . 1 . . . . . . . . . . Scanalyzer 2 | . . . . . . . . 1 . . . . . . . . . . . . . . 1 . . . . . Retrieve Study 2 | . . . . . . . . 1 . . . . . . . . . . . . . . 1 . . . . . Garrison Access Hacks 2 | . . . . . 1 . . 1 . . . . . . . . . . . . . . . . . . . . Unlock Access 1 | . . . . . 1 . . . . . . . . . . . . . . . . . . . . . . . Seal Access 1 | . . . . . . . . 1 . . . . . . . . . . . . . . . . . . . . Unauthorized Hacks 2 | . . . . . . . . . . . . . . . . . . 2 . . . . . . . . . . Terminals 2 | . . . . . . . . . . . . . . . . . . 2 . . . . . . . . . . Botnet 2 | . . . . . . . . . . . . . . . . . . 2 . . . . . . . . . . Fabricators . | . . . . . . . . . . . . . . . . . . . . . . . . . . . . . Repair Stations . | . . . . . . . . . . . . . . . . . . . . . . . . . . . . . Recycling Units . | . . . . . . . . . . . . . . . . . . . . . . . . . . . . . Scanalyzers . | . . . . . . . . . . . . . . . . . . . . . . . . . . . . . Garrison Access . | . . . . . . . . . . . . . . . . . . . . . . . . . . . . . Data Cores Recovered 2 | . . . . . 1 . . 1 . . . . . . . . . . . . . . . . . . . . Used 1 | . . . . . . . . 1 . . . . . . . . . . . . . . . . . . . . Hacking Detections 44 | . 3 . . 1 2 2 1 6 . . . . 4 . . . . 5 . . . 1 2 4 . . 5 8 Full Trace Events 2 | . 1 . . . . . . . . . . . . . . . . . . . . . . 1 . . . . Feedback Events . | . . . . . . . . . . . . . . . . . . . . . . . . . . . . . Feedback Blocked . | . . . . . . . . . . . . . . . . . . . . . . . . . . . . . Robot Schematics Acquired 7 | . . . . . . . . . . . 3 . . . . 4 . . . . . . . . . . . . Robots Built 4 | . . . . . . . . 4 . . . . . . . . . . . . . . . . . . . . Authchips . | . . . . . . . . . . . . . . . . . . . . . . . . . . . . . Time 67 | . . . . . . . . 67 . . . . . . . . . . . . . . . . . . . . Total Robot Build Rating 16 | . . . . . . . . 16 . . . . . . . . . . . . . . . . . . . . Part Schematics Acquired 23 | . . . . . . . . . . . 14 . . . . 9 . . . . . . . . . . . . Parts Built . | . . . . . . . . . . . . . . . . . . . . . . . . . . . . . Authchips . | . . . . . . . . . . . . . . . . . . . . . . . . . . . . . Time . | . . . . . . . . . . . . . . . . . . . . . . . . . . . . . Total Part Build Rating . | . . . . . . . . . . . . . . . . . . . . . . . . . . . . . Part Studies Acquired 2 | . . . . . . . . 1 . . . . . . . . . . . . . . 1 . . . . . Parts Repaired . | . . . . . . . . . . . . . . . . . . . . . . . . . . . . . Time . | . . . . . . . . . . . . . . . . . . . . . . . . . . . . . Parts Recycled . | . . . . . . . . . . . . . . . . . . . . . . . . . . . . . Recycled Matter . | . . . . . . . . . . . . . . . . . . . . . . . . . . . . . Retrieved Matter . | . . . . . . . . . . . . . . . . . . . . . . . . . . . . . Retrieved Components 3 | . . . . . . . . . . . . . . . . . . 3 . . . . . . . . . . Parts Scanalyzed . | . . . . . . . . . . . . . . . . . . . . . . . . . . . . . Part Schematics Acquired . | . . . . . . . . . . . . . . . . . . . . . . . . . . . . . Parts Damaged . | . . . . . . . . . . . . . . . . . . . . . . . . . . . . . Bothacking | -11 -10 -10 -10 -9 -8 -8 -8 -7 -7 -7 -7 -6 -6 -6 -6 -6 -5 -5 -5 -5 -5 -4 -4 -4 -4 -4 -3 -3 ------------ Run | Yrd Mat Min Exi Min Mat Gar Mat Fac Low Low Zio Pro Fac Low Low Dat Pro Fac Upp Upp War Pro Fac Ext Cet Arc Res Arm Used RIF Installer . | . . . . . . . . . . . . . . . . . . . . . . . . . . . . . Robots Hacked 2 | . . . . . . . . . . . 1 . . . . . . . . . 1 . . . . . . . Non-combat . | . . . . . . . . . . . . . . . . . . . . . . . . . . . . . Combat 2 | . . . . . . . . . . . 1 . . . . . . . . . 1 . . . . . . . Robot Hacks Applied 2 | . . . . . . . . . . . 1 . . . . . . . . . 1 . . . . . . . parse_system 2 | . . . . . . . . . . . 1 . . . . . . . . . 1 . . . . . . . Relay Couplers Released 16 | . . . . . . 16 . . . . . . . . . . . . . . . . . . . . . . Machine Destruction 16 | . . . . . . 16 . . . . . . . . . . . . . . . . . . . . . . Fabnet Peak Effective % . | . . . . . . . . . . . . . . . . . . . . . . . . . . . . . Robots Rewired 10 | . . . . . . . . . 1 . . . . . . . 2 . . 1 . . . 6 . . . . Allies Hacked . | . . . . . . . . . . . . . . . . . . . . . . . . . . . . . Hacks Repelled . | . . . . . . . . . . . . . . . . . . . . . . . . . . . . . Allies | -11 -10 -10 -10 -9 -8 -8 -8 -7 -7 -7 -7 -6 -6 -6 -6 -6 -5 -5 -5 -5 -5 -4 -4 -4 -4 -4 -3 -3 -------- Run | Yrd Mat Min Exi Min Mat Gar Mat Fac Low Low Zio Pro Fac Low Low Dat Pro Fac Upp Upp War Pro Fac Ext Cet Arc Res Arm Total Allies 34 | . . 4 . . . . . 4 1 . 8 . . . . . 2 . . 1 . . . 9 5 . . . Largest Group 8 | . . 4 4 4 4 3 . 4 1 . 8 6 3 . . . 2 . . 1 . . . 8 8 5 . . Highest-Rated Group 599 | . . 71 71 71 71 55 . 48 16 . 335 225 147 . . . 60 . . 49 . . . 439 599 423 . . Highest-Rated Ally 159 | . . 31 31 31 31 31 . 12 16 . 96 96 96 . . . 30 . . 49 . . . 159 146 96 . . Initial Warlord ECA Mod 8 | . . . . . . . 8 7 7 7 7 6 6 6 6 6 5 5 5 5 5 4 4 4 4 4 3 3 Total Orders . | . . . . . . . . . . . . . . . . . . . . . . . . . . . . . Ally Attacks 371 | . . 8 . 17 39 13 . 15 5 . . 60 29 . . . 4 . . . . . . 82 65 34 . . Total Damage 8181 | . . 129 . 122 390 150 . 174 64 . . 1095 803 . . . 106 . . . . . . 2373 1667 1108 . . Kills 60 | . . 4 . 3 7 2 . 4 1 . . 10 8 . . . 1 . . . . . . 9 6 5 . . Allies Corrupted . | . . . . . . . . . . . . . . . . . . . . . . . . . . . . . Allies Melted . | . . . . . . . . . . . . . . . . . . . . . . . . . . . . . Intel | -11 -10 -10 -10 -9 -8 -8 -8 -7 -7 -7 -7 -6 -6 -6 -6 -6 -5 -5 -5 -5 -5 -4 -4 -4 -4 -4 -3 -3 ------- Run | Yrd Mat Min Exi Min Mat Gar Mat Fac Low Low Zio Pro Fac Low Low Dat Pro Fac Upp Upp War Pro Fac Ext Cet Arc Res Arm Active Infowar (turns) 11364 | 1 194 . . . . . . . 544 158 . . 501 520 629 112 589 650 647 1635 1151 331 251 756 707 135 789 1064 Optics 6842 | . . . . . . . . . . . . . 501 520 629 112 . . . . 1047 331 251 756 707 135 789 1064 Sensors 5441 | . . . . . . . . . 544 158 . . 26 520 629 111 . . 647 1635 104 . . . . . 368 699 IFF 1239 | . . . . . . . . . . . . . . . . . 589 650 . . . . . . . . . . Seismic 195 | 1 194 . . . . . . . . . . . . . . . . . . . . . . . . . . . Decoding 2539 | . . . . . . . . . . . . . . . . . . . . . . . . 659 707 135 789 249 Cloaking 576 | . . . . . . . . . . . . . . . . . . . . . . . . . . . . 576 ECM 2791 | . . . . . . . . . . . . . . . . . . . . . 174 331 251 480 . . 663 892 Robot Analysis Total 154 | . . . . . . . . . . . . . . . . 154 . . . . . . . . . . . . Derelict Logs Recovered 17 | . . 1 . 2 . . . . 3 1 2 1 . 1 1 . 1 . . 3 . 1 . . . . . . Drone Launches . | . . . . . . . . . . . . . . . . . . . . . . . . . . . . . Drone Recoveries . | . . . . . . . . . . . . . . . . . . . . . . . . . . . . . Decoded 0b10 Intel 47 | . . . . . . . . . . . . . . . . . . . . . . . . 15 2 . 22 8 Traps 6 | . . . . . . . . . . . . . . . . . . . . . . . . 3 . . 3 . Emergency Access 7 | . . . . . . . . . . . . . . . . . . . . . . . . . . . 5 2 Items 30 | . . . . . . . . . . . . . . . . . . . . . . . . 11 1 . 12 6 Patrols 2 | . . . . . . . . . . . . . . . . . . . . . . . . 1 . . 1 . Guards 1 | . . . . . . . . . . . . . . . . . . . . . . . . . . . 1 . Exits 1 | . . . . . . . . . . . . . . . . . . . . . . . . . 1 . . . Exploration | -11 -10 -10 -10 -9 -8 -8 -8 -7 -7 -7 -7 -6 -6 -6 -6 -6 -5 -5 -5 -5 -5 -4 -4 -4 -4 -4 -3 -3 ------------- Run | Yrd Mat Min Exi Min Mat Gar Mat Fac Low Low Zio Pro Fac Low Low Dat Pro Fac Upp Upp War Pro Fac Ext Cet Arc Res Arm Turns Passed 19529 | 67 430 360 254 420 579 1365 75 550 550 799 2191 592 512 520 629 679 676 734 652 1635 1227 331 251 756 707 135 789 1064 Spaces Moved 11338 | 49 252 269 205 294 332 696 61 462 407 398 1202 416 322 431 468 370 447 432 365 270 986 273 128 427 227 72 488 589 Core 140 | 18 . . . . . . . . . . . . . . . . . . . 122 . . . . . . . . Treads . | . . . . . . . . . . . . . . . . . . . . . . . . . . . . . Legs 11198 | 31 252 269 205 294 332 696 61 462 407 398 1202 416 322 431 468 370 447 432 365 148 986 273 128 427 227 72 488 589 Wheels . | . . . . . . . . . . . . . . . . . . . . . . . . . . . . . Hover . | . . . . . . . . . . . . . . . . . . . . . . . . . . . . . Flight . | . . . . . . . . . . . . . . . . . . . . . . . . . . . . . Fastest Speed 50 | 50 120 120 120 120 120 97 97 97 97 105 108 108 108 120 120 120 120 120 120 120 105 105 97 101 112 117 115 108 Average Speed 139 | 94 120 120 120 120 140 125 97 97 109 175 173 108 110 120 120 120 120 122 159 563 113 107 154 115 187 169 132 119 Slowest Speed 1300 | 120 120 190 120 120 190 190 97 183 183 257 257 108 120 120 120 120 120 190 330 1300 190 108 245 180 260 186 185 245 Overloaded Moves . | . . . . . . . . . . . . . . . . . . . . . . . . . . . . . Propulsion Burnouts . | . . . . . . . . . . . . . . . . . . . . . . . . . . . . . Robots Hopped . | . . . . . . . . . . . . . . . . . . . . . . . . . . . . . Potential Cave-ins 10 | . . . . . . . . 6 . . . . . . . . . . . . . . . . . . . 4 Cave-ins Triggered . | . . . . . . . . . . . . . . . . . . . . . . . . . . . . . Exploration Rate (%) 50 | 4 44 45 62 54 26 91 15 14 59 66 87 54 13 63 63 82 70 15 55 54 93 49 6 63 60 96 18 32 Regions Visited 28 Branch Regions 19 Pre-discovered Areas 32 | . . 1 . 1 . . . . 2 . . . . . 1 26 . . . . . 1 . . . . . . Known Exits Taken 13 | . . . . . 1 . . 1 1 . . 1 1 1 1 . 1 1 . 1 . 1 . . . 1 1 . Unknown Exits Taken 14 | 1 1 1 1 1 . . 1 . . 1 1 . . . . 1 . . 1 . 1 . 1 1 1 . . . Scrap Searched 23 | . . 1 . . . . . . 2 4 3 2 . . 2 . 4 . 1 3 . 1 . . . . . . Spaces Dug 48 | . . . . . . 3 . 2 . . . . 4 . 3 . . 20 2 . . . 3 3 . . 6 2 Terrain Destroyed 471 | . . . . . . 19 1 14 5 10 . 4 56 . 10 . 46 28 2 38 11 25 6 76 17 31 8 64 Melee 5 | . . . . . . . . . . . . . . . . . . 3 2 . . . . . . . . . Projectile 201 | . . . . . . . 1 14 1 10 . 4 11 . 10 . 25 25 . . 11 13 6 21 17 . 8 24 AOE 259 | . . . . . . 19 . . 4 . . . 45 . . . 21 . . 38 . 12 . 55 . 31 . 34 Terrain Rammed . | . . . . . . . . . . . . . . . . . . . . . . . . . . . . . Walls Destroyed . | . . . . . . . . . . . . . . . . . . . . . . . . . . . . . Machines Disabled . | . . . . . . . . . . . . . . . . . . . . . . . . . . . . . Actions | -11 -10 -10 -10 -9 -8 -8 -8 -7 -7 -7 -7 -6 -6 -6 -6 -6 -5 -5 -5 -5 -5 -4 -4 -4 -4 -4 -3 -3 --------- Run | Yrd Mat Min Exi Min Mat Gar Mat Fac Low Low Zio Pro Fac Low Low Dat Pro Fac Upp Upp War Pro Fac Ext Cet Arc Res Arm Total 13771 | 66 315 298 213 350 400 936 68 538 471 458 1307 523 421 434 517 554 509 533 425 349 1091 296 164 616 452 78 584 805 Wait 781 | . 18 17 9 44 3 41 . 22 23 7 56 75 29 4 35 50 7 28 28 14 19 . 5 57 134 . 28 28 Move 11312 | 48 251 268 204 293 332 695 61 461 406 397 1201 415 321 430 467 369 446 431 364 269 985 272 127 426 226 71 487 589 Hop . | . . . . . . . . . . . . . . . . . . . . . . . . . . . . . Pick Up 267 | 9 7 6 . . 15 15 1 11 5 12 15 5 11 . 1 35 6 6 6 18 18 . 7 7 14 . 15 22 Fast Attach 70 | . . . . . 3 2 . 4 . . 1 1 3 . . 2 . 3 2 3 7 . 4 10 7 2 3 13 Attach 160 | 7 1 1 . . 6 12 . 4 5 6 14 . 5 . . 17 4 5 7 10 10 2 4 3 6 . 9 22 Detach 21 | . . . . . . . . 1 . 3 4 . . . . . . . 4 2 4 . . 1 . . . 2 Swap 107 | . 1 . . 3 7 9 . 3 2 4 6 3 7 . 1 5 8 . 2 2 . 1 2 14 9 1 6 11 Drop 222 | . 1 2 . 3 12 9 . 12 4 7 6 7 13 . 1 38 4 2 4 6 21 . . 14 21 . 12 23 Fire 710 | 2 36 4 . 7 22 136 4 20 24 17 . 17 32 . 12 . 34 53 . 25 27 21 15 51 35 4 24 88 Melee 65 | . . . . . . 3 . . 2 5 4 . . . . 38 . 5 8 . . . . . . . . . Ram . | . . . . . . . . . . . . . . . . . . . . . . . . . . . . . Kick 9 | . . . . . . . 2 . . . . . . . . . . . . . . . . . . . . 7 Crush . | . . . . . . . . . . . . . . . . . . . . . . . . . . . . . Escape Stasis 14 | . . . . . . 14 . . . . . . . . . . . . . . . . . . . . . . Rewire 33 | . . . . . . . . . . . . . . . . . . . . . . . . 33 . . . . Trap . | . . . . . . . . . . . . . . . . . . . . . . . . . . . . . Miscellaneous . | . . . . . . . . . . . . . . . . . . . . . . . . . . . . . Route ------- -11/Scrapyard -10/Materials -10/Mines (discovered 2 exits: [*Mat] / *Exi) -10/Exiles -9/Mines -8/Materials (discovered 2 exits: *Fac / Gar) -8/Garrison (discovered 3 exits: *Mat x3) -8/Materials -7/Factory (discovered 3 exits: *Fac / *Low x2) -7/Lower Caves -7/Lower Caves (discovered 2 exits: *Fac / *Zio) -7/Zion (discovered 2 exits: Dee / [*Pro]) -6/Proximity Caves -6/Factory (discovered 2 exits: Fac / *Low) -6/Lower Caves -6/Lower Caves -6/Data Miner -5/Proximity Caves -5/Factory (discovered 5 exits: *Fac x3 / *Upp x2) -5/Upper Caves -5/Upper Caves -5/Warlord -4/Proximity Caves -4/Factory -4/Extension (discovered 3 exits: *Res x2 / *Cet) -4/Cetus (discovered 2 exits: *Res / [*Arc]) -4/Archives (discovered 3 exits: *Res / [*Hub x2]) -3/Research (discovered 4 exits: *Res / *Arm / Tes x2) -3/Armory History --------- Turn | Location | Event 5 | -11/Scrapyard | Discovered new exit (range 16) 68 | -11/Scrapyard | Entered Materials 314 | -10/Materials | Build established: Mutant 489 | -10/Materials | Discovered new exit (range 8) 498 | -10/Materials | Entered Mines 501 | -10/Mines | Assisted by bots powering up and referring to "LRC-V3" 544 | -10/Mines | Discovered new exit (range 7) 592 | -10/Mines | Received a Rocket Launcher from a helpful Derelict 629 | -10/Mines | Met a Derelict testing a Signal Generator 733 | -10/Mines | Found a Scrap Suit stashed away for nefarious purposes 821 | -10/Mines | Deemed a non-threat by the Exiles lab entrance 821 | -10/Mines | Discovered new exit (range 5) 858 | -10/Mines | Entered Exiles 858 | -10/Exiles | Found Exiles lab abandoned 858 | -10/Exiles | Accompanied by 4 allies 1089 | -10/Exiles | Discovered new exit (range 14) 1112 | -10/Exiles | Entered Mines 1112 | -9/Mines | Accompanied by 4 allies 1116 | -9/Mines | Met a Derelict bent on vengeance 1293 | -9/Mines | Learned location of Storage (-8) 1448 | -9/Mines | Discovered new exit (range 10) 1458 | -9/Mines | Learned Materials non-interactive machine intel 1468 | -9/Mines | Build established: Scavenger-Mutant 1532 | -9/Mines | Entered Materials 1532 | -8/Materials | Accompanied by 4 allies 1532 | -8/Materials | Evolved 4 slots: Propulsion x2, Utility x2 1533 | -8/Materials | Loaded intel: 45 non-interactive machine locations 1965 | -8/Materials | Discovered new exit (range 16) 2110 | -8/Materials | Identified exit to Garrison 2111 | -8/Materials | Entered Garrison 2111 | -8/Garrison | Accompanied by 3 allies 2133 | -8/Garrison | Triggered checkpoint 2166 | -8/Garrison | Learned Materials security intel 2299 | -8/Garrison | Triggered checkpoint 2303 | -8/Garrison | Garrison Relay disabled 2463 | -8/Garrison | Triggered checkpoint 2463 | -8/Garrison | Triggered checkpoint 2508 | -8/Garrison | Destroyed 10 combat bots 2566 | -8/Garrison | Lost 4 parts (3n1w) 2647 | -8/Garrison | Discovered new exit (range 9) 2691 | -8/Garrison | Triggered checkpoint 2730 | -8/Garrison | Core integrity fell below 50% 2838 | -8/Garrison | Garrison Relay disabled 3126 | -8/Garrison | Discovered new exit (range 15) 3163 | -8/Garrison | Triggered checkpoint 3183 | -8/Garrison | Garrison Relay disabled 3275 | -8/Garrison | Triggered checkpoint 3329 | -8/Garrison | Discovered new exit (range 12) 3339 | -8/Garrison | Triggered checkpoint 3396 | -8/Garrison | Core integrity fell below 20% 3430 | -8/Garrison | Garrison Relay disabled 3434 | -8/Garrison | Lost 3 parts (2u1w) 3476 | -8/Garrison | Entered Materials 3541 | -8/Materials | Discovered new exit (range 10) 3551 | -8/Materials | Entered Factory 3551 | -7/Factory | Evolved 2 slots: Utility x1, Weapon x1 3688 | -7/Factory | Fabricated S-27 Virus? 3743 | -7/Factory | Identified exit to Lower Caves 3927 | -7/Factory | Central database locked down 4098 | -7/Factory | Discovered new exit (range 10) 4101 | -7/Factory | Entered Lower Caves 4101 | -7/Lower Caves | Accompanied by 1 ally 4109 | -7/Lower Caves | Met a Warlord Commander 4110 | -7/Lower Caves | Learned location of Warlord (-5) 4111 | -7/Lower Caves | Warlord Commander delivered Encrypted Comm Array 4111 | -7/Lower Caves | Found Encrypted Comm Array 4137 | -7/Lower Caves | Learned 4 Factory zone layouts 4166 | -7/Lower Caves | Encountered a Warlord checkpoint 4226 | -7/Lower Caves | Learned location of Zion (-7) 4294 | -7/Lower Caves | Entered an active Warlord outpost 4299 | -7/Lower Caves | Build established: Mutant 4309 | -7/Lower Caves | Learned Extension security intel 4344 | -7/Lower Caves | Destroyed F8-LZA(g) 4408 | -7/Lower Caves | Learned Factory terminal intel 4438 | -7/Lower Caves | Attracted the attention of an 0b10 outpost 4487 | -7/Lower Caves | Destroyed 10 combat bots 4597 | -7/Lower Caves | Discovered new exit (range 6) 4649 | -7/Lower Caves | Identified exit to Lower Caves 4651 | -7/Lower Caves | Entered another Lower Caves area 4653 | -7/Lower Caves | Attracted the attention of an 0b10 checkpoint 4719 | -7/Lower Caves | Discovered new exit (range 4) 4731 | -7/Lower Caves | Identified exit to Factory 4771 | -7/Lower Caves | Ambushed by wild Derelicts 4795 | -7/Lower Caves | System corruption reached 10% 4842 | -7/Lower Caves | Lost 5 parts (1n3u1w) 4878 | -7/Lower Caves | Lost 3 parts (1n1u1w) 5365 | -7/Lower Caves | Discovered new exit (range 7) 5450 | -7/Lower Caves | Entered Zion 5468 | -7/Zion | Given A8's code to call for help 5558 | -7/Zion | System corruption cleaned by Quarantine Array 5601 | -7/Zion | Discovered new exit (range 11) 5903 | -7/Zion | Learned Factory stockpile data 6152 | -7/Zion | Met Imprinter 6291 | -7/Zion | Identified exit to Deep Caves 6477 | -7/Zion | Found Prototype Device 6478 | -7/Zion | Identified Mobile Refinery Mk. CCLXVII 6515 | -7/Zion | Found Prototype Special Weapon 6517 | -7/Zion | Found Prototype Special Weapon 6520 | -7/Zion | Found Prototype Special Weapon 6523 | -7/Zion | Found Prototype Special Weapon 6523 | -7/Zion | Identified RU-N14's Throwing Claymores (x4) 6615 | -7/Zion | Learned Factory terminal intel 6864 | -7/Zion | Gained Derelict followers 7011 | -7/Zion | Gained Derelict followers 7261 | -7/Zion | Enhanced Grunt warped into view, answering call for help 7263 | -7/Zion | Enhanced Grunt warped into view, answering call for help 7543 | -7/Zion | Visited the Megawrench Repair Shop 7543 | -7/Zion | Megawrench repaired 9 parts 7641 | -7/Zion | Entered Proximity Caves 7641 | -6/Proximity Caves | Accompanied by 7 allies 7645 | -6/Proximity Caves | Spotter reported a threat 7646 | -6/Proximity Caves | Spotted B-75 Beast 7652 | -6/Proximity Caves | Destroyed B-75 Beast 7702 | -6/Proximity Caves | Spotter reported a threat 7755 | -6/Proximity Caves | Spotter reported a threat 7808 | -6/Proximity Caves | Spotter reported a threat 7835 | -6/Proximity Caves | Learned Factory emergency access door positions 7922 | -6/Proximity Caves | Build established: Scavenger-Tank 7933 | -6/Proximity Caves | Attracted the attention of an 0b10 checkpoint 8043 | -6/Proximity Caves | Discovered exit to Factory (range 7) 8233 | -6/Proximity Caves | Entered Factory 8233 | -6/Factory | Accompanied by 3 allies 8233 | -6/Factory | Evolved 2 slots: Propulsion x1, Utility x1 8234 | -6/Factory | Identified exit to Lower Caves 8235 | -6/Factory | Identified exit to Factory 8238 | -6/Factory | Loaded intel: 26 terminal locations 8391 | -6/Factory | Spotted B-75 Beast 8410 | -6/Factory | Destroyed B-75 Beast 8583 | -6/Factory | Search patrols dispatched 8745 | -6/Factory | Entered Lower Caves 8923 | -6/Lower Caves | Learned Factory security intel 8947 | -6/Lower Caves | Encountered a Warlord checkpoint 9033 | -6/Lower Caves | Build established: Scavenger-Skirmisher 9049 | -6/Lower Caves | Discovered new exit (range 10) 9061 | -6/Lower Caves | Identified exit to Lower Caves 9192 | -6/Lower Caves | Entered a destroyed Warlord outpost 9265 | -6/Lower Caves | Entered another Lower Caves area 9495 | -6/Lower Caves | Spotted B-75 Beast 9666 | -6/Lower Caves | Encountered a Warlord checkpoint 9774 | -6/Lower Caves | Learned location of Extension (-4) 9811 | -6/Lower Caves | Discovered new exit (range 19) 9830 | -6/Lower Caves | Identified exit to Data Miner 9894 | -6/Lower Caves | Entered Data Miner 9896 | -6/Data Miner | Discovered new exit (range 6) 9912 | -6/Data Miner | Met Data Miner 9939 | -6/Data Miner | Learned location of Section 7 (-2) 9939 | -6/Data Miner | Acquired the access code to Warlord's prototype stash 9956 | -6/Data Miner | Received God Mode back door access code from Data Miner 10110 | -6/Data Miner | Interfaced with the Data Conduit 10291 | -6/Data Miner | Found Exp. Thermal Shield 10342 | -6/Data Miner | Build established: Scavenger-Gladiator 10453 | -6/Data Miner | Found Exp. Thermal Shield 10573 | -6/Data Miner | Entered Proximity Caves 10575 | -5/Proximity Caves | Attracted the attention of an 0b10 outpost 10644 | -5/Proximity Caves | Destroyed 7 combat bots 10747 | -5/Proximity Caves | Destroyed 8 combat bots 10803 | -5/Proximity Caves | Build established: Scavenger-Tank 10918 | -5/Proximity Caves | Learned location of 2 exits from Factory 11158 | -5/Proximity Caves | Attracted the attention of an 0b10 checkpoint 11185 | -5/Proximity Caves | Discovered exit to Factory (range 6) 11249 | -5/Proximity Caves | Entered Factory 11249 | -5/Factory | Evolved 2 slots: Power x1, Utility x1 11250 | -5/Factory | Identified exit to Factory 11252 | -5/Factory | Loaded intel: 240 machine locations 11253 | -5/Factory | Loaded intel: 26 terminal locations 11433 | -5/Factory | Identified exit to Upper Caves 11572 | -5/Factory | Discovered exit to Factory (range 11) 11763 | -5/Factory | Lost 5 parts (1p1n2u1w) 11893 | -5/Factory | Lost 3 parts (1p2n) 11897 | -5/Factory | Build established: Scavenger-Mutant 11931 | -5/Factory | Found Mni. Smartbomb Launcher 11983 | -5/Factory | Entered Upper Caves 12095 | -5/Upper Caves | Encountered a Warlord checkpoint 12350 | -5/Upper Caves | Spotted B-75 Beast 12404 | -5/Upper Caves | Found DCF Scrap (16 items) 12460 | -5/Upper Caves | Build established: Scavenger-Gladiator 12616 | -5/Upper Caves | Discovered new exit (range 16) 12635 | -5/Upper Caves | Entered another Upper Caves area 12637 | -5/Upper Caves | Attracted the attention of an 0b10 outpost 12687 | -5/Upper Caves | Destroyed 10 combat bots 12694 | -5/Upper Caves | Lost 7 parts (3n3u1w) 12927 | -5/Upper Caves | Build established: Mutant 13438 | -5/Upper Caves | Entered a destroyed Warlord outpost 13568 | -5/Upper Caves | Learned Factory stockpile data 13687 | -5/Upper Caves | Attracted the attention of an 0b10 checkpoint 13697 | -5/Upper Caves | Core integrity fell below 50% 14087 | -5/Upper Caves | Learned location of 1 exit from Proximity Caves 14140 | -5/Upper Caves | Identified exit to Warlord 14270 | -5/Upper Caves | Entered Warlord 14334 | -5/Warlord | System corruption cleaned by Quarantine Array 14412 | -5/Warlord | Opened Warlord's prototype stash 14445 | -5/Warlord | Found Spectral Analyzer 14452 | -5/Warlord | Found Vortex Chain Reactor 14608 | -5/Warlord | Build established: Scavenger-Mutant 14921 | -5/Warlord | Warlord's base attacked by MAIN.C 15059 | -5/Warlord | Found Prototype Energy Gun 15059 | -5/Warlord | Identified Vortex Rail 15065 | -5/Warlord | Found Prototype Energy Gun 15065 | -5/Warlord | Identified Vortex Shotgun 15077 | -5/Warlord | Met EX-DEC 15078 | -5/Warlord | Found Prototype Energy Cannon 15093 | -5/Warlord | Found Vortex Rail 15097 | -5/Warlord | Found Vortex Shotgun 15150 | -5/Warlord | Met Warlord 15271 | -5/Warlord | Warlord forces counterattacked 15323 | -5/Warlord | Spotted Striker 15345 | -5/Warlord | Spotted Striker 15413 | -5/Warlord | Lost 12 allies 15451 | -5/Warlord | Opened side exit 15466 | -5/Warlord | Spotted Executioner 15466 | -5/Warlord | Spotted Executioner 15477 | -5/Warlord | Destroyed Executioner 15483 | -5/Warlord | Discovered new exit (range 11) 15497 | -5/Warlord | Entered Proximity Caves 15500 | -4/Proximity Caves | Spotter reported a threat 15500 | -4/Proximity Caves | Spotter reported a threat 15520 | -4/Proximity Caves | Lost 7 allies 15557 | -4/Proximity Caves | Spotted B-86 Titan 15670 | -4/Proximity Caves | Build established: Scavenger-Tank 15695 | -4/Proximity Caves | Destroyed B-86 Titan 15765 | -4/Proximity Caves | Attracted the attention of an 0b10 checkpoint 15828 | -4/Proximity Caves | Entered Factory 15828 | -4/Factory | Evolved 2 slots: Propulsion x1, Utility x1 15830 | -4/Factory | Loaded intel: 247 machine locations 15924 | -4/Factory | Spotted B-86 Titan 15950 | -4/Factory | Destroyed B-86 Titan 15973 | -4/Factory | Lost 3 parts (1n1u1w) 16054 | -4/Factory | Discovered new exit (range 13) 16078 | -4/Factory | Search patrols dispatched 16079 | -4/Factory | Entered Extension 16081 | -4/Extension | Loaded intel: 39 machine locations 16219 | -4/Extension | Rescued a captive Derelict 16259 | -4/Extension | Rescued a captive Derelict 16269 | -4/Extension | Energy Cycler disabled 16269 | -4/Extension | Rescued a captive Derelict 16269 | -4/Extension | Rescued a captive Derelict 16269 | -4/Extension | Rescued a captive Derelict 16270 | -4/Extension | Rescued a captive Derelict 16270 | -4/Extension | Rescued a captive Derelict 16277 | -4/Extension | Rescued a captive Derelict 16278 | -4/Extension | Rescued a captive Derelict 16291 | -4/Extension | Rescued A7 16403 | -4/Extension | Destroyed 7 combat bots 16511 | -4/Extension | Spotted B-86 Titan 16568 | -4/Extension | Discovered new exit (range 21) 16569 | -4/Extension | Spotted B-86 Titan 16576 | -4/Extension | Destroyed B-86 Titan 16586 | -4/Extension | Allies destroyed B-86 Titan 16773 | -4/Extension | Discovered new exit (range 23) 16774 | -4/Extension | Discovered new exit (range 23) 16835 | -4/Extension | Entered Cetus 16835 | -4/Cetus | Accompanied by 6 allies (A7) 16836 | -4/Cetus | Loaded intel: 24 machine locations 16840 | -4/Cetus | Acquired a Cetus Manufacturing Module code from A7 16847 | -4/Cetus | Spotted Cetus Guard 16847 | -4/Cetus | Spotted Cetus Guard 16847 | -4/Cetus | Spotted Cetus Guard 16847 | -4/Cetus | Spotted Cetus Guard 16854 | -4/Cetus | Extracted ID and sensor layout for unrecognized location from A7's data core 16862 | -4/Cetus | Destroyed Cetus Guard 16880 | -4/Cetus | Destroyed Cetus Guard 16886 | -4/Cetus | Allies destroyed Cetus Guard 16887 | -4/Cetus | Allies destroyed Cetus Guard 16908 | -4/Cetus | Lost 6 parts (1p4n1w) 16910 | -4/Cetus | Lost 3 allies 17054 | -4/Cetus | Started Cetus Manufacturing Module 17062 | -4/Cetus | Discovered new exit (range 23) 17079 | -4/Cetus | Manufactured an Enhanced Grunt 17104 | -4/Cetus | Manufactured an Enhanced Grunt 17129 | -4/Cetus | Manufactured an Enhanced Grunt 17154 | -4/Cetus | Manufactured an Enhanced Grunt 17179 | -4/Cetus | Manufactured an Enhanced Grunt 17239 | -4/Cetus | Spotted Cetus Guard 17239 | -4/Cetus | Spotted Cetus Guard 17239 | -4/Cetus | Spotted Cetus Guard 17239 | -4/Cetus | Spotted Cetus Guard 17241 | -4/Cetus | Identified exit to Research 17256 | -4/Cetus | Allies destroyed Cetus Guard 17259 | -4/Cetus | Allies destroyed Cetus Guard 17261 | -4/Cetus | Allies destroyed Cetus Guard 17269 | -4/Cetus | Destroyed Cetus Guard 17306 | -4/Cetus | Met Revision 17 17476 | -4/Cetus | Found Exp. Thermal Shield 17542 | -4/Cetus | Entered Archives 17542 | -4/Archives | Accompanied by 5 allies 17543 | -4/Archives | Loaded intel: 8 machine locations 17563 | -4/Archives | Met Zhirov 17565 | -4/Archives | Discovered new exit (range 22) 17569 | -4/Archives | Reinforcements dispatched to Archives 17574 | -4/Archives | Discovered new exit (range 21) 17581 | -4/Archives | Discovered exit to Research (range 24) 17614 | -4/Archives | Reinforcements dispatched to Archives 17616 | -4/Archives | Zhirov warped through subspace 17634 | -4/Archives | Zhirov detonated Archives 17659 | -4/Archives | Lost 5 allies 17665 | -4/Archives | Lost 6 parts (2n3u1w) 17677 | -4/Archives | Entered Research 17677 | -3/Research | Evolved 2 slots: Utility x1, Weapon x1 17678 | -3/Research | Loaded intel: 124 machine locations 17877 | -3/Research | Revision forces began assault on 0b10 17889 | -3/Research | Discovered new exit (range 18) 17932 | -3/Research | Met up with Revision 17++ 18177 | -3/Research | Identified exit to Research 18230 | -3/Research | Identified exit to Armory 18230 | -3/Research | Identified exit to Testing 18377 | -3/Research | Research terminal network offline 18391 | -3/Research | Build established: Scavenger-Skirmisher 18466 | -3/Research | Entered Armory 18467 | -3/Armory | Loaded intel: 93 machine locations 19034 | -3/Armory | Lost 3 parts (1n1u1w) 19306 | -3/Armory | Attacked by bots powering up and referring to "LRC-V3" 19379 | -3/Armory | Lost 5 parts (1p1n2u1w) 19401 | -3/Armory | System corruption reached 10% 19430 | -3/Armory | System corruption reached 30% 19472 | -3/Armory | Lost 13 parts (3p4n2u4w) 19494 | -3/Armory | Core integrity fell below 50% 19524 | -3/Armory | Core integrity fell below 20% 19530 | -3/Armory | Destroyed by S-43 Plague with Heavy Machine Gun Last Messages --------------- 19473_ Kicked W-44 Eye. 19473_ Penetrated by Slug. 19476_ Transfer Shaft disabled. 19480_ Flexi-carbon Leg+ destroyed. 19480_ Kicked P-80 Master out of the way. 19482_ Kicked P-80 Master. 19484_ Kicked P-80 Master out of the way. 19485_ ALERT: Suspicious intruders detected, dispatching Specialist reinforcements to area. 19488_ Acquired Enh. Nova Cannon. 19492_ Dropped Enh. Nova Cannon. 19492_ Acquired Enh. Nova Cannon. 19493_ Door malfunctions. 19494_ Mak. ECM Suite destroyed. 19499_ GZTTNRJON, FFQRY7UMET,N 4FBY,S 19511_ Centrium Leg destroyed. 19511_ Flexi-carbon Leg+ destroyed. 19515_ DDB8BCJPC,R7Z8=KQ3Y8I%%I6 NZR17FH 19517_ Hcp. Storage Unit destroyed. 19527_ Adv. Energy Well destroyed. Map ----- +----------------------------------------------------+ | | | | | | | | | | | | | ?????????????????????????????????????????????????? | | ?????????????????????????????????????????????????? | | ?????????????????????????????????????????????????? | | ?????????????????????????????????????????????????? | | ?????????????????????????????????????????????????? | | ?????????????????????????????????????????????????? | | ?????????????????????????????????????????????????? | | ??????????????????????????????????????????????#### | | ???????????##????????????????????????????????##[** | | ############ ####???#############???????????##%*=! | | #???# #???????????#!%[!% | | ?""" ##### ]#???????????#[= %[ | | ""T"" "" / + """"""" #???????????#==[ % | | "" "" """ ##### """"""" #???????????##!=* | | !] "" #???# """"""" #???????????###=[# | | ! !] #???# #?????????????## # | | ] %#???# #??????????????# # | | ######+########%##########;#########???######### # | | ?????????# % / gpp # #???# ## # | | "????????# [[[] ] ######@ # #???# "[! =## # | | "????????# [[[]]] #????# + #???# =%!! ## # | | "????????# #????# # ##### [* =!#=[ | | "????????#####/#####????# # / / % =%/[ | | "??????????? ???????? ############# ![#! | | "?????????? ???????? #??################# | | ??????????+###???????#### #?? / | | ????????????????????????# #?? # | | ?????????????"""""??????# #??"""" # | | ?????????????"???"??????#ss#??"??"?????? ?+ | | ?????????????"???"??????# #??"??"????? ?#### | | ?????????????"""""??????# #??"??"??? ?????? | | ????????????????????????# s#??""""? ??????? | | ????????????????????????# +?????? ??????? | | ????????????????????????# #?????#########???????? | | ????????????????????????# #?????????????????????? | | ????????????????????????# s#?????????????????????? | | ????????????????????????# #?????????????????????? | | ????????????????????????# #?????????????????????? | | ????????????????????????? ??????????????????????? | | ????????????????????????? ??????????????????????? | | ????????????????????????? ??????????????????????? | | ???????????????????"""??? ""????????????????????? | | ???????????????????"""??? """???????????????????? | | ???"""???""????????"""??????F"???????????????????? | +----------------------------------------------------+ Best States ------------- Heat Dissipation 119 Coolant Potential 120 Energy Generation 55 Energy Capacity 1200 Matter Stores 300 Matter Capacity 300 Sight Range 24 Robot Scan Range 16 Terrain Scan Density 10 ECM Strength 2 Cloak Strength 4 Additional Mass Support 6 Base Temperature (-) 200 Armor Coverage 600 Resistance: TH 30 Weapon Cycling 20 Melee Speed Boost 20 Phase Shifting 10 Evasion (%) 70 Melee Accuracy 16 Particle Charging 25 Offensive Hacking 10 Defensive Hacking 10 Authchip Count 1 Item Schematics ----------------- Imp. Medium Armor Plating | -7/Zion | Archive Fusion Compressor | -7/Zion | Archive Gatling Laser | -7/Zion | Archive Thermic Laser | -7/Zion | Archive Imp. Hardlight Generator | -7/Zion | Archive Shock Absorption System | -7/Zion | Archive Hvy. Treads | -7/Zion | Archive Imp. Particle Charger | -7/Zion | Archive Arm. Huge Wheel | -7/Zion | Archive Phase Cannon | -7/Zion | Archive Adv. Assault Cannon | -7/Zion | Archive Adv. Melee Analysis Suite | -7/Zion | Archive Imp. Remote Datajack | -7/Zion | Archive Hvy. Mass Driver | -7/Zion | Archive Combat Drone Bay | -6/Data Miner | Free Enh. Armored Leg | -6/Data Miner | Free Imp. Matter Compressor | -6/Data Miner | Free Lgt. Regenerative Plating | -6/Data Miner | Free Tiamat Missile Launcher | -6/Data Miner | Free Field Propulsion Array | -6/Data Miner | Free Adv. Thermal Generator | -6/Data Miner | Free Railgun | -6/Data Miner | Free Q-thruster | -6/Data Miner | Free Robot Schematics ------------------ G-47 Trooper | -7/Zion | Archive D-53 Grenadier | -7/Zion | Archive L-41 Fighter | -7/Zion | Archive B-48 Gladiator | -6/Data Miner | Free A-15 Conveyor | -6/Data Miner | Free R-10 Processor | -6/Data Miner | Free S-27 Virus | -6/Data Miner | Free Fabricated ------------ S-27 Virus | x4 | -7/Factory | Preloaded Repaired ---------- Nothing Studied --------- VSS Leg | -7/Factory | Hacked Flexi-carbon Leg | -4/Factory | Hacked Alien Tech Used ----------------- None Achievements -------------- None Challenges ------------ None Game ------ Seed CoreLegNetwork Manual? 0 Play Time 02:19:20 Cumulative 516.2 hours Start 2025.11.18 @ 02:39:43 End 2025.11.18 @ 19:31:32 Sessions 4 Manual Loads 0 Difficulty Rogue Special Mode None Game No. 693 Rogue 693 Adventurer 0 Explorer 0 Win Type - Total 16 Types 8/0/2/2/1/0/2/1/0/0 Lore% 91 Gallery% 85 Achievement% 68 Wizard Run 0 Options --------- Layout 0 ASCII 0 Keyboard 0 Movement Mouse Keybinds 0 Fullscreen 1 Font 24/Terminus Map View 76x50 Zoom Use 0% Tactical HUD 1 Map Filters NONE Filters NONE Steam 1 RUN: 792b6712-8e28-4137-9855-51817aa073e2